[Event "French Top 16-A 2024"]
[Site "Chartres"]
[Date "2024.06.01"]
[Round "3.2"]
[White "Postny, Evgeny"]
[Black "Solakian-Van Eyll, Jerome"]
[Result "1-0"]
[ECO "D30"]
[WhiteElo "2602"]
[BlackElo "2247"]
[Annotator "TA"]
[PlyCount "119"]
[EventDate "2024.06.01"]
[EventType "team-tourn"]
[EventCountry "FRA"]
[SourceTitle "playchess.com"]
[Source "ChessBase"]
[SourceQuality "1"]
[TimeControl "40/5400+30:1800+30"]

{[%evp 26,119,46,41,63,39,25,25,32,33,46,47,43,39,32,26,37,31,33,0,21,35,52,52,52,56,65,51,48,53,58,57,66,54,60,61,53,53,58,57,58,45,62,59,91,77,91,91,88,37,37,37,37,0,10,10,10,0,10,0,0,0,0,0,10,10,10,10,10,0,0,0,10,10,10,16,168,108,702,574,571,570,1099,517,1236,1046,5057,4828,4678,4626,2200,1639,29980,29980,29985,29981]} 1. d4 {[%emt 0:00:04]} d5 {[%emt 0:00:11]} 2. c4 {[%emt 0:00:09]} e6 {[%emt 0:00:09]} 3. Nf3 {[%emt 0:00:16]} a6 {[%emt 0:00:06]} 4. Bg5 {[%emt 0:01:19]} Be7 {[%emt 0:00:43]} 5. Bxe7 {[%emt 0:00:08]} Nxe7 {[%emt 0:00:07]} 6. e3 {[%emt 0:02:38]} Nd7 {[%emt 0:02:24]} 7. Nc3 {[%emt 0:00:29]} O-O {[%emt 0:01:48]} 8. Rc1 {[%emt 0:02:36]} Nf6 {[%emt 0:21:26]} 9. a3 {[%emt 0:05:28]} b6 {[%emt 0:24:42]} 10. cxd5 {[%emt 0:03:41]} Nexd5 {[%emt 0:09:29]} 11. Bd3 {[%emt 0:02:10]} Bb7 {[%emt 0:01:57]} 12. O-O {[%emt 0:03:46]} Qe7 {[%emt 0:01:11]} 13. Nxd5 {[%emt 0:03:04]} Bxd5 {[%emt 0:05:23]} 14. Qe2 {[%emt 0:01:43]} Bb7 {[%emt 0:03:30]} 15. Rc2 {[%emt 0:06:48]} Rfc8 {[%emt 0:00:06]} 16. Rfc1 {[%emt 0:00:59]} c5 {[%emt 0:02:27]} 17. dxc5 {[%emt 0:02:04]} Rxc5 {[%emt 0:00:03]} 18. Rxc5 {[%emt 0:00:06]} bxc5 {[%emt 0:00:03]} 19. e4 {[%emt 0:06:28]} a5 {[%emt 0:01:43]} 20. Nd2 {[%emt 0:07:23]} (20. Ne5 {looks sharper.} Qd6 21. Nc4 Qf4 22. Qd2) 20... Nd7 {[%emt 0:00:53]} 21. Nc4 {[%emt 0:02:12]} Ba6 {[%emt 0:00:34]} 22. Nd2 {[%emt 0:09:50]} Bxd3 {[%emt 0:03:12]} 23. Qxd3 {[%emt 0:00:04]} Rb8 {[%emt 0:00:09]} 24. Nc4 {[%emt 0:00:16]} h6 {[%emt 0:08:41]} 25. Rd1 {[%emt 0:05:22]} Nb6 {[%emt 0:02:04]} 26. Nxa5 {[%emt 0:02:30]} c4 $1 {[%emt 0:00:18]} 27. Qd4 {[%emt 0:18:12]} Qc7 {[%emt 0:00:15]} 28. g3 {[%emt 0:02:21]} Ra8 {[%emt 0:04:40]} 29. Qd6 {[%emt 0:00:44]} Qxd6 {[%emt 0:00:09]} 30. Rxd6 {[%emt 0:00:04]} Rxa5 {[%emt 0:00:18]} 31. Rxb6 {[%emt 0:00:06]} c3 {[%emt 0:00:03]} 32. bxc3 {[%emt 0:00:07]} Rxa3 {[%emt 0:00:09]} 33. Rc6 {[%emt 0:00:15]} g5 {[%emt 0:01:11]} 34. Kg2 {[%emt 0:01:04]} g4 {[%emt 0:02:11] [#]} 35. h3 $1 {[%emt 0:01:53]} h5 {[%emt 0:00:33]} 36. Rc5 {[%emt 0:06:47]} Kg7 {[%emt 0:01:16]} 37. h4 {[%emt 0:00:07]} ({White should try} 37. Rxh5 $16 {Black must now prevent Rg5+.} gxh3+ 38. Rxh3) 37... Kg6 $14 {[%emt 0:00:24]} 38. Kf1 {[%emt 0:02:26]} Ra2 {[%emt 0:00:21]} 39. Rc4 {[%emt 0:02:16]} Rc2 {[%emt 0:02:16]} 40. Ke1 {[%emt 0:01:16]} e5 {[%emt 0:02:30]} 41. Rc6+ {[%emt 0:30:29]} Kg7 {[%emt 0:04:32]} 42. Kf1 {[%emt 0:00:00]} f6 {[%emt 0:04:58]} 43. Rc7+ {[%emt 0:00:00]} Kg6 {[%emt 0:00:33]} 44. Ke1 {[%emt 0:00:00]} Kh6 {[%emt 0:00:48]} 45. c4 {[%emt 0:00:00]} Kg6 {[%emt 0:01:04]} 46. Rc8 {[%emt 0:00:00]} Kg7 {[%emt 0:00:25]} 47. Rc6 {[%emt 0:00:00]} Kg6 {[%emt 0:01:01]} 48. Rc7 {[%emt 0:00:00]} Kh6 {[%emt 0:01:29]} 49. c5 {[%emt 0:00:00]} Rc4 {[%emt 0:03:38]} 50. Kd2 {[%emt 0:00:00]} Rxe4 $2 {[%emt 0:00:35]} (50... Kg6 $1 $11 {and Black is okay.}) 51. Kd3 {[%emt 0:00:00]} (51. Kc3 $18) 51... f5 $2 {[%emt 0:06:36][%mdl 8192]} (51... Re1 $16) 52. Rd7 {[%emt 0:00:00]} Re1 {[%emt 0:01:18]} 53. Kc4 {[%emt 0:00:00]} Kg6 {[%emt 0:08:45]} 54. Kd5 {[%emt 0:00:00]} (54. c6 $142 Rc1+ 55. Kd5) 54... Rd1+ {[%emt 0:01:10]} (54... Kf6 $142 55. Rd6+ Kf7) 55. Ke6 $18 {[%emt 0:00:00]} (55. Kxe5 Rxd7 56. c6 Rd2 57. c7 Rc2 (57... Rxf2 $2 {too greedy.} 58. c8=Q $18) (57... Re2+ $2 58. Kd6 $19) 58. Kd6 f4 (58... Rxf2 $2 59. c8=Q $18) 59. gxf4 Kf5 (59... Rxf2 $2 60. c8=Q $18) 60. Kd7 Kxf4 (60... Rd2+ 61. Kc6 Rc2+ 62. Kd7 Kxf4 63. c8=Q Rxc8 64. Kxc8 Kf3 65. Kd7 Kxf2 66. Ke8 g3 67. Kf7 g2 68. Kg6 g1=Q+ 69. Kf7 Ke3 70. Kf6 Ke4 71. Ke6 Qg6+ 72. Kd7 Kd5 73. Kc7 Kc5 74. Kd8 Kd6 75. Kc8 Qb1 76. Kd8 Qb8#) 61. c8=B Rxc8 (61... Rxf2 62. Ke6 g3 63. Bb7 g2 64. Bxg2 Rxg2 65. Kd5 Rg4 66. Kd6 Rxh4 67. Kc6 Rg4 68. Kd6 h4 69. Ke6 h3 70. Kf7 h2 71. Ke6 h1=Q 72. Kd6 Rg5 73. Ke7 Rg6 74. Ke8 Qh7 75. Kf8 Rg8#) 62. Kxc8 Kf3 (62... g3 63. fxg3+ Kxg3 64. Kd7 Kxh4 65. Ke6 Kg4 66. Kf6 h4 67. Kg6 h3 68. Kf6 h2 69. Ke5 h1=Q 70. Kd6 Qc1 71. Kd5 Qc3 72. Ke6 Qd4 73. Kf7 Qe5 74. Kf8 Kf5 75. Kf7 Qc7+ 76. Ke8 Kg6 77. Kf8 Qf7#) 63. Kd7 Kxf2 64. Ke7 g3 65. Kf6 g2 66. Kf5 g1=Q (66... g1=R 67. Ke6 Rg4 68. Kf6 Rxh4 69. Kg5 Kg3 70. Kf5 Rd4 71. Kg5 h4 72. Kf6 h3 73. Ke5 Rd1 74. Ke6 h2 75. Kf7 h1=Q 76. Kf8 Qc6 77. Kg8 Rd7 78. Kh8 Qc8#) 67. Ke6 Qd1 68. Kf7 Qd6 69. Ke8 Kg3 70. Kf7 Kxh4 71. Kg7 Kg5 72. Kh7 Qe7+ 73. Kg8 Kh6 74. Kh8 Qh7#) 55... Rc1 {[%emt 0:00:08]} 56. Rd5 {[%emt 0:00:00]} ({Weaker is} 56. Kxe5 Rxc5+ 57. Rd5 Rc2 $11) 56... Rc2 {[%emt 0:00:15]} 57. Rxe5 {[%emt 0:00:00]} Rxf2 {[%emt 0:00:13]} 58. c6 {[%emt 0:00:00]} f4 {[%emt 0:01:05]} 59. gxf4 {[%emt 0:00:00]} Rxf4 {[%emt 0:00:05]} 60. c7 {[%emt 0:00:00]} 1-0

[Event "French Top 16-A 2024"]
[Site "Chartres"]
[Date "2024.06.01"]
[Round "3.3"]
[White "Karthik Venkataraman"]
[Black "Grigoryan, Karen H."]
[Result "1/2-1/2"]
[ECO "C67"]
[WhiteElo "2606"]
[BlackElo "2583"]
[Annotator "RC"]
[PlyCount "47"]
[EventDate "2024.06.01"]
[EventType "team-tourn"]
[EventCountry "FRA"]
[SourceTitle "playchess.com"]
[Source "ChessBase"]
[SourceQuality "1"]
[TimeControl "40/5400+30:1800+30"]

1. e4 {[%emt 0:00:04]} e5 {[%emt 0:00:31]} 2. Nf3 {[%emt 0:00:10]} Nc6 {[%emt 0:00:36]} 3. Bb5 {[%emt 0:00:11]} Nf6 {[%emt 0:00:36]} 4. O-O {[%emt 0:03:25]} Nxe4 {[%emt 0:00:23]} 5. d4 {[%emt 0:00:10]} Nd6 {[%emt 0:00:15]} 6. Bxc6 {[%emt 0:00:08]} dxc6 {[%emt 0:00:07]} 7. dxe5 {[%emt 0:00:06]} Nf5 {[%emt 0:00:06]} 8. Qxd8+ {[%emt 0:00:08]} Kxd8 {[%emt 0:00:04]} 9. Nc3 {[%emt 0:00:08]} h6 {[%emt 0:01:45]} 10. h3 {[%emt 0:00:26]} Bd7 {[%emt 0:04:18]} 11. b3 {[%emt 0:00:24]} b6 {[%emt 0:01:11]} 12. Bb2 {[%emt 0:00:25]} Kc8 {[%emt 0:00:17]} 13. Ne2 {[%emt 0:02:08]} c5 {[%emt 0:02:59]} 14. g4 {[%emt 0:17:23]} Ne7 {[%emt 0:04:12]} 15. Nf4 {[%emt 0:03:04]} Bc6 {[%emt 0:05:43]} 16. Nd2 {[%emt 0:06:47]} h5 {[%emt 0:07:39]} 17. Nxh5 {[%emt 0:13:39]} g6 {[%emt 0:01:14]} 18. Nf6 {[%emt 0:00:11]} Rxh3 {[%emt 0:04:48]} 19. f3 {[%emt 0:01:54]} Nd5 {[%emt 0:14:07]} 20. Nxd5 {[%emt 0:03:14]} Bxd5 {[%emt 0:00:10]} 21. c4 {[%emt 0:02:12]} Bc6 {[%emt 0:01:09]} 22. Kg2 {[%emt 0:00:45]} Rh4 {[%emt 0:05:11]} 23. Kg3 {[%emt 0:01:44]} Be7 {[%emt 0:00:26]} 24. Ne4 {[%emt 0:21:25]} 1/2-1/2

[Event "French Top 16-A 2024"]
[Site "Chartres"]
[Date "2024.06.01"]
[Round "3.3"]
[White "Ramirez Garcia, Jorge Alberto"]
[Black "Ganguly, Surya Shekhar"]
[Result "0-1"]
[ECO "B22"]
[WhiteElo "2266"]
[BlackElo "2576"]
[Annotator "TA"]
[PlyCount "96"]
[EventDate "2024.06.01"]
[EventType "team-tourn"]
[EventCountry "FRA"]
[SourceTitle "playchess.com"]
[Source "ChessBase"]
[SourceQuality "1"]
[TimeControl "40/5400+30:1800+30"]

{[%evp 14,96,0,0,0,0,0,-18,-4,-14,-12,-42,-48,-53,-48,-47,-31,-124,-128,-122,-120,-122,-113,-120,-103,-93,-100,-112,-115,-115,-111,-212,-195,-238,-229,-228,-235,-302,-309,-310,-308,-327,-331,-418,-412,-433,-418,-468,-450,-473,-451,-468,-461,-468,-428,-479,-479,-479,-472,-466,-454,-447,-447,-447,-403,-451,-405,-1110,-1047,-1181,-1058,-1372,-720,-5065,-2002,-4627,-4618,-6502,-5612,-29980,-29981,-29981,-29982,-29982,-29983]} 1. e4 {[%emt 0:00:04][%cal Be2e4,Be4e5][%mdl 32]} c5 {[%emt 0:00:29]} 2. c3 {[%emt 0:00:07]} Nf6 {[%emt 0:00:19]} 3. e5 {[%emt 0:00:07]} Nd5 {[%emt 0:00:04]} 4. Nf3 {[%emt 0:00:05]} d6 {[%emt 0:00:41]} 5. d4 {[%emt 0:00:19]} cxd4 {[%emt 0:00:37]} 6. cxd4 {[%emt 0:00:07]} Nc6 {[%emt 0:00:23]} 7. Bc4 {[%emt 0:00:32]} dxe5 {[%emt 0:00:48]} 8. dxe5 {[%emt 0:01:01]} Be6 {[%emt 0:00:38][%cal Od5e3]} 9. O-O {[%emt 0:15:41]} g6 {[%emt 0:00:16]} 10. Qb3 {[%emt 0:09:54][%cal Of1d1]} Qd7 {[%emt 0:10:22] The position is equal.} 11. Bd2 {[%emt 0:14:05]} Bg7 {[%emt 0:03:00]} 12. Re1 {[%emt 0:04:48]} O-O {[%emt 0:05:24]} 13. a4 {[%emt 0:02:16]} Rad8 {[%emt 0:03:50]} 14. h3 {[%emt 0:03:36] Inhibits Bg4.} Qc7 {[%emt 0:05:13][%cal Oa7a6]} 15. Bc3 {[%emt 0:08:38] White is now going downhill.} (15. Na3 $1 $15) 15... Nxc3 $17 {[%emt 0:03:20]} 16. Qxc3 {[%emt 0:09:06] [#]} Nxe5 $1 {[%emt 0:03:03][%mdl 512]} 17. Nxe5 {[%emt 0:03:43]} Bxe5 {[%emt 0:00:26]} 18. Rxe5 {[%emt 0:01:14]} Qxc4 {[%emt 0:01:18]} (18... Bxc4 19. Na3 Rc8 (19... f6 $2 20. Re4 $18) 20. Nxc4 Qxc4 21. Qg3) 19. Qxc4 {[%emt 0:03:36]} Bxc4 {[%emt 0:00:06]} 20. Na3 {[%emt 0:00:12]} Be6 {[%emt 0:00:27]} 21. Nb5 {[%emt 0:01:19]} Rd2 {[%emt 0:00:16]} 22. b4 {[%emt 0:03:12] [#]} (22. Nc7 $17 {keeps fighting.}) 22... Rc8 $1 $19 {[%emt 0:01:28]} 23. Rc5 {[%emt 0:05:26]} Rxc5 {[%emt 0:00:25]} 24. bxc5 {[%emt 0:00:03][%mdl 4096] Endgame. KRB-KRN} a6 {[%emt 0:00:32]} 25. Nc7 {[%emt 0:00:47]} Bd7 {[%emt 0:00:32]} 26. Rb1 {[%emt 0:00:12]} Bc6 {[%emt 0:01:46][%cal Od2d8]} (26... Bxa4 27. Rxb7 Rd7 28. Rb8+ Kg7 29. Nxa6 $15) 27. Rb6 {[%emt 0:00:11][%cal Oc7a6]} a5 {[%emt 0:00:17][%cal Od2d4]} ({Not} 27... Bxa4 28. Rxb7 a5 29. Ra7 $15) 28. Na6 {[%emt 0:03:03]} Rd8 {[%emt 0:01:10][%cal Od8c8] Against Nb8} ({Less strong is} 28... Rd1+ 29. Kh2 $19) 29. Nc7 {[%emt 0:01:53]} Rd4 {[%emt 0:00:08]} (29... Bxa4 30. Rxb7 Rd7 31. Rb8+ Kg7 32. Na6 $19) 30. Nb5 {[%emt 0:00:34]} Rxa4 {[%emt 0:00:10]} 31. Na7 {[%emt 0:00:04]} Bd5 {[%emt 0:01:12]} 32. c6 {[%emt 0:00:26] aiming for c7.} Bxc6 {[%emt 0:01:17]} ({Weaker is} 32... bxc6 33. Nxc6 Bxc6 34. Rxc6 $19) 33. Nxc6 {[%emt 0:00:05]} bxc6 {[%emt 0:00:05]} 34. Rxc6 {[%emt 0:00:04] KR-KR} Ra1+ {[%emt 0:01:20]} 35. Kh2 {[%emt 0:00:05]} a4 {[%emt 0:00:02]} 36. Rc7 {[%emt 0:00:12]} e5 {[%emt 0:00:29]} 37. Re7 {[%emt 0:00:24]} f6 {[%emt 0:00:07]} 38. Ra7 {[%emt 0:00:46]} f5 {[%emt 0:00:54]} 39. h4 {[%emt 0:00:17]} a3 {[%emt 0:00:31]} 40. Kg3 {[%emt 0:02:28]} (40. Ra8+ $142 Kf7 41. Ra7+ Ke6 42. Rxh7) 40... a2 {[%emt 0:00:49] Strongly threatening ...h6.} 41. Kf3 {[%emt 0:32:11]} h6 {[%emt 0:31:03] ...g5 would now be deadly.} 42. g3 {[%emt 0:00:53]} g5 {[%emt 0:00:54]} 43. hxg5 {[%emt 0:02:38]} hxg5 {[%emt 0:00:06] Threatens to win with ...e4+.} 44. Kg2 {[%emt 0:03:27]} e4 {[%emt 0:00:20] And now ...Kf8 would win.} 45. Ra5 {[%emt 0:00:10]} f4 {[%emt 0:01:09] ( -> ...f3+)} 46. Rxg5+ {[%emt 0:00:24]} Kh7 {[%emt 0:00:05] Black mates.} 47. Ra5 {[%emt 0:00:25]} f3+ {[%emt 0:00:06]} 48. Kh2 {[%emt 0:00:10] [#]} e3 $1 {[%emt 0:00:05][%mdl 512] Weighted Error Value: White=1.11/Black=0.18 (very precise) .  Mistake:       	White=3     	---        Inaccurate:     	White=1     	---        OK:         	White=6     	Black=19     Best:        	White=1     	Black=2      Strong:       	---       	Black=1} 0-1

[Event "French Top 16-A 2024"]
[Site "Chartres"]
[Date "2024.06.01"]
[Round "3.4"]
[White "Fedorchuk, Sergey A."]
[Black "Parligras, Mircea-Emilian"]
[Result "1-0"]
[ECO "C65"]
[WhiteElo "2546"]
[BlackElo "2561"]
[Annotator "TA"]
[PlyCount "73"]
[EventDate "2024.06.01"]
[EventType "team-tourn"]
[EventCountry "FRA"]
[SourceTitle "playchess.com"]
[Source "ChessBase"]
[SourceQuality "1"]
[TimeControl "40/5400+30:1800+30"]

{[%evp 11,73,0,0,0,0,8,0,0,8,8,16,4,20,17,29,23,23,21,27,25,24,29,29,11,20,14,27,10,65,69,81,45,114,115,110,105,116,110,106,119,119,112,198,198,249,256,212,200,247,247,254,264,233,213,218,139,231,232,352,249,488,470,1522,1476]} 1. e4 {[%emt 0:00:06]} e5 {[%emt 0:00:17]} 2. Nf3 {[%emt 0:00:25]} Nc6 {[%emt 0:00:06]} 3. Bb5 {[%emt 0:01:20]} Nf6 {[%emt 0:00:11]} 4. d3 {[%emt 0:01:32]} Bc5 {[%emt 0:00:29]} 5. O-O {[%emt 0:02:20]} Nd4 {[%emt 0:00:54]} 6. Nxd4 {[%emt 0:01:17]} Bxd4 {[%emt 0:00:09]} 7. Ba4 {[%emt 0:00:19]} c6 {[%emt 0:01:21]} 8. Nd2 {[%emt 0:02:30]} d6 {[%emt 0:00:58]} 9. c3 {[%emt 0:01:48] The position is equal.} Bb6 {[%emt 0:00:09]} 10. Bc2 {[%emt 0:01:46]} Be6 {[%emt 0:14:20]} 11. Nf3 {[%emt 0:05:44]} h6 {[%emt 0:03:08]} 12. d4 {[%emt 0:04:29]} Bc7 {[%emt 0:05:04]} 13. Re1 {[%emt 0:05:02]} O-O {[%emt 0:00:37]} 14. h3 {[%emt 0:00:35]} Re8 {[%emt 0:01:59]} 15. Be3 {[%emt 0:05:06]} Nh7 {[%emt 0:11:21]} 16. a4 {[%emt 0:06:39][%cal Ba2a4,Ba4a5][%mdl 32]} a5 {[%emt 0:01:18]} 17. b4 {[%emt 0:02:35]} axb4 {[%emt 0:01:37]} 18. cxb4 {[%emt 0:01:45]} Nf8 {[%emt 0:00:50]} 19. a5 {[%emt 0:03:13]} Ng6 {[%emt 0:00:33]} (19... exd4 $11 20. Qxd4 (20. Nxd4 c5 $11) 20... Ng6) 20. d5 $14 {[%emt 0:06:51]} Bd7 {[%emt 0:08:51][%cal Oc6c5]} 21. Ba4 {[%emt 0:04:27]} Ne7 {[%emt 0:10:16] [#] Black is now going downhill.} ({Better is} 21... cxd5 $1 $14 22. Bxd7 (22. exd5 f5 $14) (22. Qxd5 Bxa4 23. Rxa4 Qd7 $14) 22... Qxd7 23. Qxd5 (23. exd5 f5 $11) 23... Ne7) 22. Nxe5 $1 $16 {[%emt 0:14:53][%mdl 512]} dxe5 {[%emt 0:13:28]} 23. d6 {[%emt 0:00:14]} Bb8 {[%emt 0:00:07]} 24. dxe7 {[%emt 0:04:43] White is much more active.} Qxe7 {[%emt 0:01:16]} 25. Bc5 {[%emt 0:03:41] Prevents Bd6.} Qd8 {[%emt 0:00:18]} 26. Bb3 $36 {[%emt 0:02:49][%mdl 2048] Hoping for Re2. White is really pushing.} Bc7 {[%emt 0:04:45]} (26... Ba7 $16 {was necessary.}) 27. Re3 $18 {[%emt 0:03:30][%cal Be1e3,Be3d3,Bd3d7][%mdl 32] Threatens to win with Rd3.} Be6 {[%emt 0:01:41] [#]} (27... Qc8 {keeps fighting.} 28. Rd3 Be6 29. Bxe6 Qxe6) 28. Bxe6 $1 {[%emt 0:00:30]} Rxe6 {[%emt 0:00:54]} 29. Rd3 {[%emt 0:00:05]} Qg5 {[%emt 0:11:20]} 30. Rd7 {[%emt 0:04:38]} Rd8 {[%emt 0:00:04] [#]} 31. Ra2 $1 {[%emt 0:08:22] Strongly threatening Rad2.} Ree8 {[%emt 0:01:54]} 32. g3 {[%emt 0:01:25]} Qf6 {[%emt 0:03:42]} 33. h4 {[%emt 0:00:48]} g6 {[%emt 0:01:47]} (33... Rxd7 $16 34. Qxd7 Qe6 35. Qxe6 (35. Qxc7 Qxa2 36. Qxb7 Qb1+ 37. Kh2 Rd8 $11) 35... fxe6) 34. Kg2 {[%emt 0:00:42]} h5 {[%emt 0:00:23]} (34... Rxd7 $142 35. Qxd7 Qe6 36. Qxe6 (36. Qxc7 Qxa2 37. Qxb7 Qe2 $18) (36. Rd2 Rd8 $18) 36... fxe6) 35. Ra3 {[%emt 0:00:19] Rf3 is the strong threat. Black is weak on the dark squares} ({Weaker is} 35. Rad2 Rxd7 36. Rxd7 Rd8 $16) 35... Qe6 $2 {[%emt 0:01:07]} (35... Rxd7 36. Qxd7 Qd8) 36. Rad3 {[%emt 0:00:10]} Qf6 {[%emt 0:00:28]} (36... Rc8 $142 37. Qf3 Kg7) 37. Rxc7 {[%emt 0:00:10] Weighted Error Value: White=0.12 (very precise) /Black=0.37.  Mistake:       	---       	Black=8      Inaccurate:     	White=2     	---        OK:         	White=15    	Black=7      Best:        	White=4     	Black=1} 1-0

[Event "French Top 16-A 2024"]
[Site "Chartres"]
[Date "2024.06.01"]
[Round "3.4"]
[White "Barseghyan, Harutyun"]
[Black "Sohier, Julien"]
[Result "1-0"]
[ECO "D27"]
[WhiteElo "2431"]
[BlackElo "2214"]
[Annotator "RC"]
[PlyCount "65"]
[EventDate "2024.06.01"]
[EventType "team-tourn"]
[EventCountry "FRA"]
[SourceTitle "playchess.com"]
[Source "ChessBase"]
[SourceQuality "1"]
[TimeControl "40/5400+30:1800+30"]

1. d4 {[%emt 0:00:02]} d5 {[%emt 0:02:54]} 2. c4 {[%emt 0:06:16]} c6 {[%emt 0:00:13]} 3. Nf3 {[%emt 0:00:19]} Nf6 {[%emt 0:00:05]} 4. e3 {[%emt 0:00:06]} a6 {[%emt 0:02:19]} 5. Bd3 {[%emt 0:00:14]} dxc4 {[%emt 0:02:26]} 6. Bxc4 {[%emt 0:00:13]} e6 {[%emt 0:00:09]} 7. O-O {[%emt 0:02:38]} c5 {[%emt 0:00:25]} 8. dxc5 {[%emt 0:00:56]} Qxd1 {[%emt 0:00:11]} 9. Rxd1 {[%emt 0:00:05]} Bxc5 {[%emt 0:00:03]} 10. Be2 {[%emt 0:00:12]} Nc6 {[%emt 0:03:07]} 11. Nbd2 {[%emt 0:08:11]} Bd7 {[%emt 0:07:33]} 12. a3 {[%emt 0:00:35]} Ke7 {[%emt 0:03:00]} 13. b4 {[%emt 0:00:08]} Bd6 {[%emt 0:02:50]} 14. Bb2 {[%emt 0:01:01]} Rhd8 {[%emt 0:01:50]} 15. Nc4 {[%emt 0:12:34]} Bc7 {[%emt 0:02:07]} 16. Rac1 {[%emt 0:05:10]} Be8 {[%emt 0:22:19]} 17. Nd4 {[%emt 0:07:25]} Nxd4 {[%emt 0:05:49]} 18. Bxd4 {[%emt 0:00:11]} Ba4 {[%emt 0:00:50]} 19. Re1 {[%emt 0:01:39]} Bc6 {[%emt 0:05:17]} 20. f3 {[%emt 0:00:30]} g6 {[%emt 0:01:28]} 21. Bc5+ {[%emt 0:06:08]} Ke8 {[%emt 0:00:10]} 22. e4 {[%emt 0:00:05]} Bf4 {[%emt 0:11:10]} 23. Rc2 {[%emt 0:07:13]} Ba4 {[%emt 0:08:34]} 24. Rb2 {[%emt 0:00:11]} Nd7 {[%emt 0:00:36]} 25. Bd6 {[%emt 0:01:41]} Bh6 {[%emt 0:01:50]} 26. Bc7 {[%emt 0:00:19]} Bg7 {[%emt 0:02:39]} 27. e5 {[%emt 0:02:28]} b5 {[%emt 0:05:00]} 28. Nd6+ {[%emt 0:00:28]} Ke7 {[%emt 0:00:03]} 29. f4 {[%emt 0:05:25]} Nxe5 {[%emt 0:02:55]} 30. fxe5 {[%emt 0:00:22]} Bxe5 {[%emt 0:03:17]} 31. Nf5+ {[%emt 0:00:15]} Kf6 {[%emt 0:02:22]} 32. Bxe5+ {[%emt 0:00:09]} Kxe5 {[%emt 0:00:20]} 33. Bxb5+ {[%emt 0:33:51]} 1-0

[Event "French Top 16-A 2024"]
[Site "Chartres"]
[Date "2024.06.01"]
[Round "3.5"]
[White "Barbot, Pierre"]
[Black "Libiszewski, Fabien"]
[Result "1-0"]
[ECO "A16"]
[WhiteElo "2425"]
[BlackElo "2498"]
[Annotator "TA"]
[PlyCount "57"]
[EventDate "2024.06.01"]
[EventType "team-tourn"]
[EventCountry "FRA"]
[SourceTitle "playchess.com"]
[Source "ChessBase"]
[SourceQuality "1"]
[TimeControl "40/5400+30:1800+30"]

{[%evp 12,57,48,35,42,31,51,42,50,41,26,29,33,31,33,25,59,67,130,131,128,125,123,128,143,155,150,162,151,170,169,154,160,137,142,135,145,116,237,228,223,224,379,347,386,383,346,352]} 1. d4 {[%emt 0:02:27]} Nf6 {[%emt 0:00:11]} 2. c4 {[%emt 0:00:05]} g6 {[%emt 0:00:43]} 3. g3 {[%emt 0:00:05]} Bg7 {[%emt 0:00:54]} 4. Bg2 {[%emt 0:00:47]} O-O {[%emt 0:01:13]} 5. Nc3 {[%emt 0:00:04]} d6 {[%emt 0:00:23]} 6. Nf3 {[%emt 0:00:05]} Bd7 {[%emt 0:01:07]} 7. O-O {[%emt 0:00:08]} Re8 {[%emt 0:00:29]} 8. Bf4 {[%emt 0:04:01]} Qc8 {[%emt 0:01:19]} 9. e4 {[%emt 0:04:25]} Bg4 {[%emt 0:16:56] White is slightly better.} 10. Qd2 {[%emt 0:16:39]} Bxf3 {[%emt 0:04:37]} 11. Bxf3 {[%emt 0:00:05]} e5 {[%emt 0:00:25]} 12. dxe5 {[%emt 0:01:31]} dxe5 {[%emt 0:00:08]} 13. Bg5 {[%emt 0:00:07]} Na6 {[%emt 0:16:02][%cal Bb8a6,Ba6c5,Bc5e4,Be4d2][%mdl 32]} 14. Nd5 {[%emt 0:07:44][%cal Bc3d5,Bd5c7,Bc7e6][%mdl 32]} Qe6 {[%emt 0:12:58]} (14... Qd8 $1 $14) 15. b4 $16 {[%emt 0:04:26][%cal Bb2b4,Bb4b5][%mdl 32] Threatens to win with Bxf6. White is much more active.} c6 {[%emt 0:14:29] [#]} 16. b5 $1 $36 {[%emt 0:08:13][%mdl 2048] Black must now prevent Bxf6. Black is under strong pressure.} Nc5 {[%emt 0:00:19][%cal Of6e4] [#] ...Nfxe4! is the strong threat.} 17. Nc7 $1 {[%emt 0:02:24][%csl LRa8,LRe6,LRe8]} Nfxe4 {[%emt 0:00:13]} 18. Bxe4 {[%emt 0:01:02]} Nxe4 {[%emt 0:05:23]} 19. Nxe6 {[%emt 0:01:36]} Nxd2 {[%emt 0:00:08]} 20. Nxg7 {[%emt 0:00:05]} Red8 {[%emt 0:00:12]} 21. Bxd8 {[%emt 0:02:22]} Rxd8 {[%emt 0:00:04] [#]} 22. Ne6 $1 {[%emt 0:00:49]} fxe6 {[%emt 0:00:07][%mdl 4096] Endgame. KRR-KRN} 23. Rfd1 {[%emt 0:00:03]} c5 {[%emt 0:02:03]} 24. Kg2 {[%emt 0:00:49]} e4 {[%emt 0:02:40] Black cannot hold the game after this.} (24... Rd4 $16 {was necessary.}) 25. Rac1 $18 {[%emt 0:05:29]} Rd3 {[%emt 0:02:01]} 26. Rc2 {[%emt 0:02:53]} Nf3 {[%emt 0:03:17]} (26... Nxc4 {keeps fighting.} 27. Rdc1 (27. Rxd3 $2 exd3 28. Rxc4 d2 $19) 27... Nb6 28. Rxc5 Nd5) 27. Rxd3 {[%emt 0:03:18]} exd3 {[%emt 0:02:35]} 28. Rc1 {[%emt 0:01:33] Prevents Ne1+.} Ne5 {[%emt 0:00:11]} 29. Rd1 {[%emt 0:00:06] Weighted Error Value: White=0.04 (flawless) /Black=0.28 (precise) .  Mistake:       	---       	Black=3      Inaccurate:     	---       	Black=1      OK:         	White=9     	Black=11     Best:        	White=4     	---        Strong:       	White=2     	---} 1-0